[Event "GER-ch Youth-ODJM 2022 A"]
[Site "Willingen"]
[Date "2022.06.08"]
[Round "6.20"]
[White "Kliashtornyi, Arkadii"]
[Black "Frohnhäuser, Simon"]
[Result "1/2-1/2"]
[ECO "E18"]
[WhiteElo "1755"]
[BlackElo "1944"]
[Annotator "TA"]
[PlyCount "136"]
[EventDate "2022.06.05"]
[EventType "swiss"]
[EventRounds "9"]
[EventCountry "GER"]
[SourceTitle "playchess.com"]
[Source "ChessBase"]
[SourceQuality "1"]
[TimeControl "40/4500+30:900+30"]

{[%evp 18,136,83,75,97,66,95,86,137,99,132,71,76,42,46,62,36,25,41,27,31,33,60,50,34,0,14,-89,43,0,0,0,0,0,0,0,0,0,0,-19,-20,-175,40,40,35,36,96,31,82,0,0,0,0,0,0,0,0,0,0,0,0,0,0,0,0,-162,-134,-135,-92,-89,-90,-89,-82,-75,-26,-20,0,0,0,0,0,0,0,0,0,0,0,-30,0,0,0,0,0,0,0,0,0,0,0,0,0,0,0,0,0,0,0,0,0,0,0,0,0,0,0,0,0,0,0,0,0]} 1. d4 {[%emt 0:00:00]} e6 {[%emt 0:00:00]} 2. Nf3 {[%emt 0:00:00]} Nf6 {[%emt 0:00:00]} 3. g3 {[%emt 0:00:00]} b6 {[%emt 0:00:00]} 4. Bg2 {[%emt 0:00:00]} Bb7 {[%emt 0:00:00]} 5. O-O {[%emt 0:00:00]} Be7 {[%emt 0:00:00]} 6. c4 {[%emt 0:00:00]} O-O {[%emt 0:00:00]} 7. Nc3 {[%emt 0:00:00]} d6 {[%emt 0:00:00]} 8. Qc2 {[%emt 0:00:00]} Nbd7 {[%emt 0:00:00]} 9. e4 {[%emt 0:00:00]} e5 {[%emt 0:00:00]} 10. Rd1 {[%emt 0:03:39]} Qe8 {[%emt 0:00:00] E18: Queen's Indian: Old Main Line (4 g3 Bb7 5 Bg2 Be7 6 0-0 0-0 7 Nc3).} 11. h3 {[%emt 0:13:36] [#]} Bd8 $146 {[%emt 0:00:00]} ({Predecessor:} 11... a5 12. Be3 h6 13. Nh4 Nh7 14. Nf5 Bd8 15. b3 Ng5 16. dxe5 dxe5 17. a3 Ne6 {1-0 (32) Shaydullina,S (2293)-Zemlianukhina,V (2063) Sochi 2006}) 12. Be3 {[%emt 0:06:21]} c6 {[%emt 0:03:56]} ({Black should try} 12... Be7) 13. Rd2 {[%emt 0:06:55] White is more active.} Rc8 {[%emt 0:04:16]} 14. dxe5 {[%emt 0:06:21]} (14. Nh4 $142) 14... Nxe5 $16 {[%emt 0:20:17]} 15. Nxe5 {[%emt 0:05:54]} (15. Rxd6 Nxc4 16. Rd3 Nxe3 17. Rxe3 Be7 $11) 15... dxe5 {[%emt 0:00:05]} 16. Rad1 {[%emt 0:01:32]} Bc7 {[%emt 0:04:16]} 17. b3 {[%emt 0:22:44]} h6 {[%emt 0:01:05]} 18. c5 {[%emt 0:05:36]} Qe7 {[%emt 0:00:53]} 19. cxb6 {[%emt 0:03:33]} Bxb6 {[%emt 0:09:31]} 20. Bxb6 {[%emt 0:01:26]} axb6 {[%emt 0:00:05]} 21. Rd6 {[%emt 0:01:52]} Ba8 {[%emt 0:19:42][%cal Of6d5]} 22. Na4 {[%emt 0:00:49] [#]} (22. Qe2 $11 {remains equal.}) 22... Rb8 {[%emt 0:02:16]} (22... Nd5 $1 $17 23. Qb2 (23. exd5 $2 cxd5 24. Rd7 Qxd7 $19) (23. Qd3 Qxd6) 23... Qxd6 24. Nxb6 Rb8 25. Nxa8 Rxa8 26. exd5 f5) 23. Qd2 {[%emt 0:01:21]} Nd5 {[%emt 0:01:53]} 24. exd5 {[%emt 0:00:37]} Qxd6 {[%emt 0:00:05]} 25. dxc6 {[%emt 0:00:05]} Qxd2 {[%emt 0:00:13]} 26. Rxd2 {[%emt 0:00:02]} Rfc8 {[%emt 0:11:45]} 27. Rc2 {[%emt 0:01:21]} Rc7 {[%emt 0:00:16]} 28. b4 {[%emt 0:00:04]} b5 {[%emt 0:00:16]} 29. Nc5 {[%emt 0:00:02]} (29. Nb2 $2 Rbc8 30. Rc5 Bxc6 31. Rxe5 f6 $19) (29. Nc3 $1 $11 {and White is okay.} Kf8 30. a4 bxa4 31. b5) 29... Rb6 $2 {[%emt 0:01:53]} ({Reject} 29... Bxc6 $6 30. Na6 Bxg2 31. Rxc7 $11) (29... Rbc8 $19 30. a4 Bxc6) 30. Nd7 $14 {[%emt 0:01:16]} Ra6 {[%emt 0:00:31]} 31. Nxe5 {[%emt 0:00:51]} Ra4 {[%emt 0:01:17]} (31... f6 $14 32. Ng6 (32. Bd5+ Kh7 $14) 32... Kf7) 32. Nd3 {[%emt 0:02:55]} ({Better is} 32. Rd2 $16) 32... Kf8 {[%emt 0:01:52]} (32... g5 $14) 33. Nc5 {[%emt 0:01:00]} ({White should play} 33. Kh2 $16) 33... Rxb4 $11 {[%emt 0:04:24]} 34. Na6 {[%emt 0:00:23]} Rb1+ {[%emt 0:00:04]} 35. Kh2 {[%emt 0:00:04]} Rc8 {[%emt 0:00:04]} 36. Nb8 {[%emt 0:02:35]} Ke7 {[%emt 0:00:48]} (36... Rxb8 $5 37. c7 Rc8 38. Bxa8 Rxa8 39. c8=Q+ Rxc8 40. Rxc8+ Ke7 $11) 37. Nd7 {[%emt 0:00:33]} Rc7 {[%emt 0:01:41]} 38. Nb6 {[%emt 0:00:14][%mdl 64] Trapped Piece} Bxc6 {[%emt 0:00:33] And now ...Kd6 would win.} 39. Rxc6 {[%emt 0:00:41]} ({Much weaker is} 39. Bxc6 Kd6 40. Be4 Rxc2 41. Bxc2 Rb2 $17) 39... Rxc6 {[%emt 0:00:15]} 40. Bxc6 {[%emt 0:00:01]} Rb2 {[%emt 0:00:22][%csl LRa2,LRf2] ...Kd6 is the strong threat.} 41. Bd5 $2 {[%emt 0:15:21]} (41. Kg1 $11 {and White has nothing to worry.}) 41... Rxf2+ {[%emt 0:15:37]} 42. Kg1 {[%emt 0:00:00]} Rf6 {[%emt 0:00:00][%mdl 1024] Black has strong compensation.} 43. Nc8+ {[%emt 0:00:00]} Kd7 {[%emt 0:00:00]} 44. Na7 {[%emt 0:00:00]} b4 {[%emt 0:00:00]} 45. Nb5 {[%emt 0:00:00] [#]} Rb6 {[%emt 0:00:00]} (45... Rg6 $1 $17 {[%cal Rg6g3]} 46. Kg2 Rg5) 46. a4 $1 {[%emt 0:00:00]} bxa3 {[%emt 0:00:00]} 47. Nxa3 {[%emt 0:00:00]} Ke7 {[%emt 0:00:00]} 48. Nc2 {[%emt 0:01:27]} Rb1+ {[%emt 0:00:00]} 49. Kf2 {[%emt 0:00:06]} Rb2 {[%emt 0:00:00] aiming for ...f5.} 50. Be4 {[%emt 0:00:04]} g6 {[%emt 0:00:00]} 51. g4 {[%emt 0:00:53]} Ke6 {[%emt 0:00:00]} 52. Kf3 {[%emt 0:00:56]} Ke5 {[%emt 0:00:00]} 53. Bd3 {The position is equal.} Rb3 {[%emt 0:00:00]} 54. Ke3 {[%emt 0:02:35]} f5 {[%emt 0:00:00]} 55. gxf5 {[%emt 0:00:05]} gxf5 {[%emt 0:00:00]} 56. Ne1 {[%emt 0:00:46]} f4+ {[%emt 0:00:00]} 57. Kf2 {[%emt 0:00:33]} Rb2+ {[%emt 0:01:05]} 58. Be2 {[%emt 0:00:43] Hoping for Nd3+.} Ke4 {[%emt 0:03:56]} 59. Nf3 {[%emt 0:00:20]} Ra2 {[%emt 0:02:06]} 60. Ne1 {[%emt 0:00:26]} h5 {[%emt 0:00:43]} 61. Nf3 {[%emt 0:00:44]} Ra3 {[%emt 0:01:18]} 62. Bd1 {[%emt 0:00:26]} Rc3 {[%emt 0:00:33]} 63. Be2 {[%emt 0:00:28]} Rc8 {[%emt 0:01:03]} 64. h4 {[%emt 0:00:50]} Rc2 {[%emt 0:00:22]} 65. Ng5+ {[%emt 0:00:32]} Kf5 {[%emt 0:00:44]} 66. Nf3 {[%emt 0:00:01] Black must now prevent Nd4+.} Ra2 {[%emt 0:00:38]} 67. Nd4+ {[%emt 0:00:02]} Kg6 {[%emt 0:00:40]} 68. Nf3 {[%emt 0:00:03]} Rb2 {[%emt 0:00:25] Weighted Error Value: White=0.24 (precise) /Black=0.24 (precise)} 1/2-1/2

[Event "GER-ch Youth-ODJM 2022 A"]
[Site "Willingen"]
[Date "2022.06.08"]
[Round "6.21"]
[White "Fuchs, Florian"]
[Black "Kesselmeier, Kevin"]
[Result "1-0"]
[ECO "B54"]
[WhiteElo "2320"]
[BlackElo "1927"]
[Annotator "TA"]
[PlyCount "53"]
[EventDate "2022.06.05"]
[EventType "swiss"]
[EventRounds "9"]
[EventCountry "GER"]
[SourceTitle "playchess.com"]
[Source "ChessBase"]
[SourceQuality "1"]
[TimeControl "40/4500+30:900+30"]

{[%evp 19,53,55,60,47,87,79,86,94,106,104,134,125,257,252,236,215,541,526,501,500,538,537,660,640,831,795,757,752,1079,1040,1274,1261,1599,1572,29991,29992]} 1. e4 {[%emt 0:00:00]} c5 {[%emt 0:00:00]} 2. Nf3 {[%emt 0:00:00]} d6 {[%emt 0:00:00]} 3. d4 {[%emt 0:00:00]} cxd4 {[%emt 0:00:00]} 4. Nxd4 {[%emt 0:00:00]} Nf6 {[%emt 0:00:00]} 5. f3 {[%emt 0:00:00]} a6 {[%emt 0:00:00]} 6. c4 {[%emt 0:00:00]} e6 {[%emt 0:00:00]} 7. Nc3 {[%emt 0:00:00]} Be7 {[%emt 0:00:00]} 8. Be3 {[%emt 0:00:00]} O-O {[%emt 0:00:00]} 9. Be2 {[%emt 0:00:00]} b6 {[%emt 0:00:00]} 10. O-O {[%emt 0:00:00]} Bb7 {[%emt 0:00:00]} 11. a4 {[%emt 0:00:00] [#] A31: Symmetrical English: 2 Nf3 Nf6 3 d4.} a5 $146 {[%emt 0:06:22]} ({Predecessor:} 11... Nbd7 12. a5 bxa5 13. Nb3 a4 14. Rxa4 Qc7 15. Na5 Rfb8 16. b4 Ne5 17. Qd2 Bc8 18. Rb1 Nfd7 19. f4 Nc6 20. Nxc6 Qxc6 21. b5 {1-0 (44) Savchenko,B (2551)-Martinez Alcantara,J (2620) Chess.com INT 2020}) 12. Ndb5 {[%emt 0:00:00]} Na6 {[%emt 0:12:46]} 13. Qe1 {[%emt 0:04:43] White is better.} Nd7 {[%emt 0:19:56]} 14. Rd1 {[%emt 0:02:38]} Qb8 {[%emt 0:06:45]} 15. Qg3 {[%emt 0:04:13] 0x0.001e61f51a9ddp-1022s more active pieces.} Ne5 {[%emt 0:05:38]} (15... Nf6 $16) 16. f4 $18 {[%emt 0:01:18]} ({Less strong is} 16. Bxb6 Bxe4 17. Ba7 (17. Bxa5 Bc2 $14) 17... Rxa7 18. Nxe4 Rd7 $14) 16... Nd7 {[%emt 0:09:10]} 17. e5 {[%emt 0:01:24]} ({Don't play} 17. Bd4 $6 e5 $16) 17... d5 $2 {[%emt 0:04:54] [#]} (17... f5 18. Rfe1 (18. exd6 Bf6 $18) 18... Rd8) 18. cxd5 {[%emt 0:01:11]} exd5 {[%emt 0:00:35]} 19. Nxd5 {[%emt 0:13:19]} Bxd5 {[%emt 0:07:27]} 20. Rxd5 {[%emt 0:00:25]} Rd8 {[%emt 0:04:06]} 21. Rfd1 {[%emt 0:01:13]} Ndc5 {[%emt 0:01:06]} 22. Rxd8+ {[%emt 0:01:33]} Bxd8 {[%emt 0:00:06]} 23. Bf3 {[%emt 0:00:05]} Nb4 {[%emt 0:02:36]} 24. Bxa8 {[%emt 0:01:43]} Qxa8 {[%emt 0:00:08]} 25. Bxc5 {[%emt 0:01:17]} bxc5 {[%emt 0:00:06]} 26. Qf3 {[%emt 0:00:03]} Qc8 {[%emt 0:04:12] [#]} 27. Qb7 $3 {[%emt 0:00:09][%mdl 512] Black did not feel at home in the position after the opening.  Weighted Error Value: White=0.04 (flawless) /Black=1.05} 1-0

[Event "GER-ch Youth-ODJM 2022 A"]
[Site "Willingen"]
[Date "2022.06.08"]
[Round "6.22"]
[White "Schwartz, Oliver"]
[Black "Gallasch, Robin"]
[Result "1/2-1/2"]
[ECO "D31"]
[WhiteElo "1753"]
[BlackElo "2063"]
[Annotator "TA"]
[PlyCount "115"]
[EventDate "2022.06.05"]
[EventType "swiss"]
[EventRounds "9"]
[EventCountry "GER"]
[SourceTitle "playchess.com"]
[Source "ChessBase"]
[SourceQuality "1"]
[TimeControl "40/4500+30:900+30"]

{[%evp 9,115,-34,-46,-46,-40,-39,-35,-43,0,0,0,0,0,0,0,-62,-63,-44,-23,-86,-93,-88,13,-6,25,0,9,20,29,28,66,41,200,179,208,194,247,252,289,301,298,293,293,304,279,273,287,288,337,316,377,382,377,374,361,358,373,377,385,389,366,343,416,440,438,322,323,322,284,233,216,210,330,339,360,116,152,102,213,146,210,200,317,307,296,280,212,8,8,8,8,8,8,8,8,8,8,8,8,8,8,8,8,8,8,8,8,8]} 1. d4 {[%emt 0:00:00]} d5 {[%emt 0:00:00]} 2. c4 {[%emt 0:00:00]} e6 {[%emt 0:00:00]} 3. Nc3 {[%emt 0:00:00]} a6 {[%emt 0:00:00]} 4. Qb3 {[%emt 0:00:00]} dxc4 {[%emt 0:00:00]} 5. Qxc4 {[%emt 0:00:00]} b5 {[%emt 0:00:00]} 6. Qd3 {[%emt 0:00:00] D31: Queen's Gambit Declined: Semi-Slav without ...Nf6 (+ Marshall Gambit and Noteboom) and Exchange Variation lines without ...Nf6.} Bb7 {[%emt 0:00:00]} 7. Nf3 {[%emt 0:00:00] [#]} Nf6 $146 {[%emt 0:06:44]} ({Predecessor:} 7... c5 8. e4 Nc6 9. Be3 cxd4 10. Nxd4 Ne5 11. Qd1 Bb4 12. Qb3 Bxc3+ 13. bxc3 Bxe4 {0-1 (31) Fernandez,M (2229)-Zawadzka,J (2426) Warsaw 2021}) 8. Bg5 {[%emt 0:01:24] Black is slightly better.} b4 {[%emt 0:06:42]} 9. Na4 {[%emt 0:05:41]} Qd5 {[%emt 0:13:52]} 10. b3 {[%emt 0:15:42]} Nbd7 {[%emt 0:04:31]} 11. Rc1 {[%emt 0:03:16]} Bd6 {[%emt 0:02:51]} 12. e3 {[%emt 0:05:22]} (12. Bxf6 $11 gxf6 13. e3) 12... Ne4 $1 $15 {[%emt 0:01:24]} 13. Bh4 {[%emt 0:02:00]} O-O {[%emt 0:03:49]} 14. Qc2 {[%emt 0:04:32]} (14. Nd2 $11 {keeps the balance.}) 14... Qh5 $17 {[%emt 0:11:46]} 15. Be2 {[%emt 0:06:33]} Qg6 {[%emt 0:03:53]} (15... g5 $17 {And now ...g4 would win.} 16. Nc5 Bxc5 17. dxc5 Bd5) 16. Bg3 {[%emt 0:02:05]} Rac8 {[%emt 0:05:12]} (16... c5 $5) 17. Bd3 {[%emt 0:02:52] Black must now prevent Ne5.} f5 {[%emt 0:00:53]} 18. O-O {[%emt 0:02:26]} Nxg3 {[%emt 0:08:26]} 19. hxg3 {[%emt 0:00:29]} Nf6 {[%emt 0:03:06]} ({Don't take} 19... c5 20. Qe2 $16) 20. Nc5 {[%emt 0:01:18]} Bxc5 {[%emt 0:04:27]} ({Black should try} 20... Bd5 $1 $14) 21. Qxc5 {[%emt 0:01:00]} Qh6 {[%emt 0:02:37]} 22. Qxb4 {[%emt 0:01:09]} Rb8 {[%emt 0:00:25]} (22... Be4 {was called for.}) 23. Qe7 $18 {[%emt 0:04:18]} Rfe8 {[%emt 0:01:11]} 24. Qxc7 {[%emt 0:03:49]} Ng4 {[%emt 0:00:09]} 25. Qf4 {[%emt 0:00:26]} Qh5 {[%emt 0:02:40] Strongly threatening ...Bxf3.} 26. Qg5 {[%emt 0:00:53]} Qf7 {[%emt 0:00:11]} 27. Rc5 {[%emt 0:01:46]} h6 {[%emt 0:00:57]} 28. Qh4 {[%emt 0:00:06]} g5 {[%emt 0:00:43]} 29. Qh3 {[%emt 0:00:28]} Rbc8 {[%emt 0:02:23]} 30. Ne5 {[%emt 0:00:33]} Nxe5 {[%emt 0:00:15]} 31. Rxe5 {[%emt 0:00:08]} Kg7 {[%emt 0:00:29]} 32. g4 {[%emt 0:01:20]} Rc3 {[%emt 0:00:26]} 33. Bc4 {[%emt 0:01:05][%cal Rg4f5]} f4 {[%emt 0:00:55]} 34. Qh5 {[%emt 0:00:48]} Qxh5 {[%emt 0:00:50]} 35. gxh5 {[%emt 0:00:04]} Rc2 {[%emt 0:00:28]} 36. exf4 {[%emt 0:01:09]} gxf4 {[%emt 0:00:18]} 37. Rxe6 {[%emt 0:04:19]} Rxe6 {[%emt 0:00:27]} 38. Bxe6 {[%emt 0:00:04][%mdl 4096] Endgame KRB-KRB} Kf6 {[%emt 0:00:21]} 39. Re1 {[%emt 0:01:52]} Rxa2 {[%emt 0:00:12]} 40. Bc4 {[%emt 0:00:46]} Rd2 {[%emt 0:00:48]} (40... Bc8 {might work better.} 41. Re4 Kg5 42. Re5+ Kh4) 41. Re6+ {[%emt 0:19:56]} Kg5 {[%emt 0:15:11]} 42. Bxa6 $2 {[%emt 0:02:17]} (42. Rg6+ $18 Kf5 43. Be6+ (43. Bxa6 Bxa6 44. Rxa6 Rxd4 $18) 43... Ke4 44. Rxh6 Kxd4 45. Bg4) 42... Bxa6 $16 {[%emt 0:00:12]} 43. Rxa6 {[%emt 0:00:06]} Kxh5 $18 {[%emt 0:01:13] KR-KR} (43... Rxd4 $16 {is a better defense.} 44. Ra5+ Kg4) 44. Ra4 {[%emt 0:07:58]} Kg4 {[%emt 0:00:00]} (44... Rd3 $16 45. Rb4 Rd1+ 46. Kh2 Rd3) 45. Rc4 $1 {[%emt 0:00:00]} h5 {[%emt 0:00:00] [#]} (45... f3 $142 46. d5+ Kf5) 46. b4 $1 {[%emt 0:00:00][%cal Bb3b4,Bb4b5][%mdl 32]} h4 {[%emt 0:00:00]} 47. b5 {[%emt 0:00:00] Rb4 is the strong threat.} Rb2 {[%emt 0:00:00] [#] Prevents Rb4.} 48. Rc5 {[%emt 0:00:00]} (48. Rc8 $1 $18 {[%cal Rc8b8]}) 48... h3 $1 $11 {[%emt 0:00:00] The position is equal.} 49. d5 {[%emt 0:00:57]} hxg2 {[%emt 0:00:00][%mdl 64] Remove Defender} 50. Kxg2 {[%emt 0:00:05] aiming for Rc4.} f3+ {[%emt 0:00:00]} 51. Kg1 {[%emt 0:00:17] Threatens to win with d6.} Kh3 {[%emt 0:00:00] ( -> ...Rb1+)} 52. Rc1 {[%emt 0:00:04] Against Rb1. White wants to play d6.} Rxb5 {[%emt 0:00:00]} 53. Rd1 {[%emt 0:00:05] next Kf1 is good for White.} Rb7 {[%emt 0:00:00]} 54. d6 {[%emt 0:00:23] White threatens d7 and mate.} Rd7 {[%emt 0:00:00]} 55. Rd3 {[%emt 0:01:29]} Kg4 {[%emt 0:00:00]} 56. Kf1 {[%emt 0:00:23]} Kf4 {[%emt 0:00:00]} 57. Ke1 {[%emt 0:00:41]} Ke5 {[%emt 0:00:00]} 58. Kd2 {[%emt 0:00:39] Blacks defense is rewarded with a draw.  Weighted Error Value: White=0.26 (precise) /Black=0.25 (precise)} 1/2-1/2

[Event "GER-ch Youth-ODJM 2022 A"]
[Site "Willingen"]
[Date "2022.06.09"]
[Round "7.1"]
[White "Roth, Jonas"]
[Black "Schöne, Finn"]
[Result "1-0"]
[ECO "D53"]
[WhiteElo "1239"]
[BlackElo "1110"]
[Annotator "NA RC COMBH"]
[PlyCount "125"]
[EventDate "2022.06.05"]
[EventType "swiss"]
[EventRounds "9"]
[EventCountry "GER"]
[SourceTitle "playchess.com"]
[Source "ChessBase"]
[SourceQuality "1"]
[TimeControl "40/4500+30:900+30"]

1. d4 {[%emt 0:00:00]} d5 {[%emt 0:00:00]} 2. c4 {[%emt 0:00:00]} e6 {[%emt 0:00:00]} 3. Nc3 {[%emt 0:00:00]} Nf6 {[%emt 0:00:00]} 4. Bg5 {[%emt 0:00:00]} Be7 {[%emt 0:00:00]} 5. e3 {[%emt 0:00:00]} a6 {[%emt 0:00:00]} 6. c5 {[%emt 0:00:00]} Nc6 {[%emt 0:00:00]} 7. a3 {[%emt 0:00:00]} b5 {[%emt 0:00:00]} 8. Bd3 {[%emt 0:00:00]} e5 {[%emt 0:00:00]} 9. Nge2 {[%emt 0:00:00]} e4 {[%emt 0:00:53]} 10. Bc2 {[%emt 0:00:00]} Bd7 {[%emt 0:10:28]} 11. Bxf6 {[%emt 0:00:00]} Bxf6 {[%emt 0:00:10]} 12. Nxd5 {[%emt 0:00:00]} Bf5 {[%emt 0:01:36]} 13. Ndc3 {[%emt 0:00:00]} Qe7 {[%emt 0:01:19]} 14. Ng3 {[%emt 0:00:00]} Bg6 {[%emt 0:00:20]} 15. Ngxe4 {[%emt 0:00:00]} b4 {[%emt 0:00:39]} 16. Nxf6+ {[%emt 0:00:00]} Qxf6 {[%emt 0:00:19]} 17. Nd5 {[%emt 0:00:00]} Qd8 {[%emt 0:01:45]} 18. Nxb4 {[%emt 0:00:00]} Bxc2 19. Qxc2 {[%emt 0:00:00]} Nxb4 {[%emt 0:03:28]} 20. axb4 {[%emt 0:00:00]} Qe7 {[%emt 0:00:05]} 21. Qa4+ {[%emt 0:00:00]} Qd7 {[%emt 0:01:03]} 22. Qxd7+ {[%emt 0:00:00]} Kxd7 {[%emt 0:00:01]} 23. O-O {[%emt 0:00:09]} Kc6 {[%emt 0:00:10]} 24. Ra5 {[%emt 0:00:19]} Rhb8 {[%emt 0:00:27]} 25. Ra4 {[%emt 0:00:34]} Kb5 {[%emt 0:00:48]} 26. b3 {[%emt 0:00:07]} Kc6 {[%emt 0:01:31]} 27. Rfa1 {[%emt 0:00:41]} Kd5 {[%emt 0:00:18]} 28. f3 {[%emt 0:00:21]} f5 {[%emt 0:00:56]} 29. g3 {[%emt 0:00:24]} g5 {[%emt 0:00:16]} 30. Kf2 {[%emt 0:00:39]} g4 {[%emt 0:01:35]} 31. f4 {[%emt 0:01:24]} Rb7 {[%emt 0:01:40]} 32. Rxa6 {[%emt 0:00:31]} Rxa6 {[%emt 0:00:10]} 33. Rxa6 {[%emt 0:00:05]} Rxb4 {[%emt 0:00:05]} 34. Ra3 {[%emt 0:00:22]} Ke4 {[%emt 0:00:21]} 35. Ke2 {[%emt 0:00:10]} c6 {[%emt 0:00:18]} 36. Kd2 {[%emt 0:00:47]} Kf3 {[%emt 0:00:32]} 37. Kd3 {[%emt 0:00:07]} Rb7 {[%emt 0:00:14]} 38. Kc4 {[%emt 0:00:56]} Kg2 {[%emt 0:00:34]} 39. Ra2+ {[%emt 0:00:19]} Kf3 {[%emt 0:00:11]} 40. Rb2 {[%emt 0:01:00]} Kxe3 {[%emt 0:00:24]} 41. d5 {[%emt 0:16:03]} cxd5+ {[%emt 0:16:11]} 42. Kxd5 {[%emt 0:00:12]} Rd7+ {[%emt 0:00:13]} 43. Kc6 {[%emt 0:00:15]} Rd4 {[%emt 0:00:16]} 44. b4 {[%emt 0:00:15]} Kd3 {[%emt 0:00:51]} 45. b5 {[%emt 0:00:25]} Kc3 {[%emt 0:00:15]} 46. Re2 {[%emt 0:01:00]} Re4 {[%emt 0:00:15]} 47. Rf2 {[%emt 0:00:58]} Kc4 {[%emt 0:00:56]} 48. b6 {[%emt 0:00:21]} Re6+ {[%emt 0:00:04]} 49. Kd7 {[%emt 0:00:16]} Re3 {[%emt 0:00:49]} 50. c6 {[%emt 0:00:24]} Kc5 {[%emt 0:00:22]} 51. b7 {[%emt 0:01:03]} Rd3+ {[%emt 0:01:14]} 52. Kc7 {[%emt 0:00:17]} Rb3 {[%emt 0:00:11]} 53. Rc2+ {[%emt 0:00:15]} Kd4 {[%emt 0:00:19]} 54. b8=Q {[%emt 0:00:16]} Rxb8 {[%emt 0:00:12]} 55. Kxb8 {[%emt 0:00:08]} Kd3 {[%emt 0:00:03]} 56. Ra2 {[%emt 0:00:41]} h5 {[%emt 0:00:20]} 57. c7 {[%emt 0:00:09]} h4 {[%emt 0:00:13]} 58. c8=Q {[%emt 0:00:20]} h3 {[%emt 0:00:12]} 59. Qc2+ {[%emt 0:00:24]} Ke3 {[%emt 0:00:16]} 60. Qd2+ {[%emt 0:00:26]} Ke4 {[%emt 0:00:21]} 61. Ra4+ {[%emt 0:00:42]} Kf3 {[%emt 0:00:24]} 62. Ra3+ {[%emt 0:00:18]} Ke4 {[%emt 0:00:06]} 63. Qd3# {[%emt 0:00:06]} 1-0

[Event "GER-ch Youth-ODJM 2022 A"]
[Site "Willingen"]
[Date "2022.06.09"]
[Round "7.2"]
[White "Ollhoff, Hannes"]
[Black "Direk, Oguzhan"]
[Result "1/2-1/2"]
[ECO "D31"]
[WhiteElo "1235"]
[BlackElo "1020"]
[Annotator "NA RC COMBH"]
[PlyCount "67"]
[EventDate "2022.06.05"]
[EventType "swiss"]
[EventRounds "9"]
[EventCountry "GER"]
[SourceTitle "playchess.com"]
[Source "ChessBase"]
[SourceQuality "1"]
[TimeControl "40/4500+30:900+30"]

1. d4 {[%emt 0:00:00]} d5 {[%emt 0:00:00]} 2. c4 {[%emt 0:00:00]} e6 {[%emt 0:00:00]} 3. Nc3 {[%emt 0:00:00]} f5 {[%emt 0:00:00]} 4. Nf3 {[%emt 0:00:00]} c6 {[%emt 0:00:00]} 5. Bf4 {[%emt 0:00:00]} Nf6 {[%emt 0:00:00]} 6. e3 {[%emt 0:00:00]} Be7 {[%emt 0:00:00]} 7. Bd3 {[%emt 0:00:00]} O-O {[%emt 0:00:00]} 8. O-O {[%emt 0:00:00]} Nbd7 {[%emt 0:00:00]} 9. c5 {[%emt 0:00:18]} Ne4 {[%emt 0:00:00]} 10. h3 {[%emt 0:04:59]} b6 {[%emt 0:03:03]} 11. cxb6 {[%emt 0:04:59]} Qxb6 {[%emt 0:00:50]} 12. Qc2 {[%emt 0:02:54]} Rb8 {[%emt 0:08:33]} 13. Rab1 {[%emt 0:03:47]} Ba6 {[%emt 0:01:21]} 14. Bxb8 {[%emt 0:01:54]} Rxb8 {[%emt 0:00:30]} 15. Bxa6 {[%emt 0:00:53]} Qxa6 {[%emt 0:00:09]} 16. Rfc1 {[%emt 0:02:39]} c5 {[%emt 0:04:41]} 17. dxc5 {[%emt 0:04:20]} Ndxc5 {[%emt 0:00:16]} 18. Nxe4 {[%emt 0:01:04]} Nxe4 {[%emt 0:00:13]} 19. Qc7 {[%emt 0:01:19]} Bd6 {[%emt 0:00:10]} 20. Qc6 {[%emt 0:05:31]} Qxa2 {[%emt 0:00:39]} 21. Qc2 {[%emt 0:07:32]} a5 {[%emt 0:05:29]} 22. b3 {[%emt 0:06:18]} Qxc2 {[%emt 0:01:07]} 23. Rxc2 {[%emt 0:02:24]} a4 {[%emt 0:00:17]} 24. Nd4 {[%emt 0:04:27]} a3 {[%emt 0:01:16]} 25. Ra1 {[%emt 0:04:40]} e5 {[%emt 0:01:28]} 26. Nxf5 {[%emt 0:07:56]} Bf8 {[%emt 0:01:59]} 27. Rc7 {[%emt 0:06:59]} Rxb3 {[%emt 0:00:44]} 28. Ne7+ {[%emt 0:01:06]} Bxe7 {[%emt 0:00:28]} 29. Rxe7 {[%emt 0:00:12]} Nc3 {[%emt 0:00:17]} 30. Ra7 {[%emt 0:01:10]} a2 {[%emt 0:00:10]} 31. R1xa2 {[%emt 0:00:29]} Nxa2 {[%emt 0:00:07]} 32. Rxa2 {[%emt 0:00:16]} Kf7 {[%emt 0:00:03]} 33. Ra7+ {[%emt 0:00:35]} Kf6 {[%emt 0:00:11]} 34. Ra6+ {[%emt 0:00:31]} 1/2-1/2

[Event "GER-ch Youth-ODJM 2022 A"]
[Site "Willingen"]
[Date "2022.06.09"]
[Round "7.3"]
[White "Heß, Maxim"]
[Black "Jansen, Malte"]
[Result "0-1"]
[ECO "D05"]
[WhiteElo "1146"]
[BlackElo "1391"]
[Annotator "NA RC COMBH"]
[PlyCount "60"]
[EventDate "2022.06.05"]
[EventType "swiss"]
[EventRounds "9"]
[EventCountry "GER"]
[SourceTitle "playchess.com"]
[Source "ChessBase"]
[SourceQuality "1"]
[TimeControl "40/4500+30:900+30"]

1. d4 {[%emt 0:00:00]} d5 {[%emt 0:00:00]} 2. e3 {[%emt 0:00:00]} Nf6 {[%emt 0:00:00]} 3. Bd3 {[%emt 0:00:00]} e6 {[%emt 0:00:00]} 4. Nf3 {[%emt 0:00:00]} Bd6 {[%emt 0:00:00]} 5. O-O {[%emt 0:00:00]} Nbd7 {[%emt 0:00:00]} 6. b3 {[%emt 0:00:00]} O-O {[%emt 0:00:00]} 7. Bb2 {[%emt 0:00:00]} Re8 {[%emt 0:00:00]} 8. Ne5 {[%emt 0:00:00]} b6 {[%emt 0:00:00]} 9. Nd2 {[%emt 0:00:00]} Bb7 {[%emt 0:00:00]} 10. f3 {[%emt 0:00:00]} Rc8 {[%emt 0:00:00]} 11. Qe1 {[%emt 0:19:27]} Nf8 {[%emt 0:05:55]} 12. g4 {[%emt 0:11:48]} N6d7 {[%emt 0:01:57]} 13. a3 {[%emt 0:05:35]} Nxe5 {[%emt 0:01:54]} 14. dxe5 {[%emt 0:00:37]} Be7 {[%emt 0:00:40]} 15. f4 {[%emt 0:01:58]} c5 {[%emt 0:02:51]} 16. Rd1 {[%emt 0:06:11]} Qc7 {[%emt 0:05:19]} 17. Qe2 {[%emt 0:03:21]} Red8 {[%emt 0:02:02]} 18. c4 {[%emt 0:03:09]} dxc4 {[%emt 0:05:14]} 19. Bxc4 {[%emt 0:04:05]} Ng6 {[%emt 0:04:19]} 20. Ba6 {[%emt 0:03:43]} Rd7 {[%emt 0:02:01]} 21. Bxb7 {[%emt 0:00:11]} Qxb7 {[%emt 0:00:10]} 22. f5 {[%emt 0:03:39]} Nh4 {[%emt 0:01:45]} 23. Qf2 {[%emt 0:00:42]} Bg5 {[%emt 0:01:51]} 24. Nc4 {[%emt 0:03:56]} b5 {[%emt 0:01:39]} 25. Nd6 {[%emt 0:00:17]} Rxd6 {[%emt 0:00:07]} 26. exd6 {[%emt 0:00:51]} Bxe3 {[%emt 0:00:26]} 27. d7 {[%emt 0:02:50]} Bxf2+ 28. Rxf2 Rd8 {[%emt 0:01:09]} 29. fxe6 {[%emt 0:03:07]} fxe6 {[%emt 0:00:27]} 30. Rdf1 {[%emt 0:05:02]} Qxd7 {[%emt 0:00:14]} 0-1